bitfinex/quotes_ETHUSD_20240917
["timestamp","ask_amount","ask_price","bid_price","bid_amount"]
[1726536451803,0.04162627,2276.5,2276.3,1.10455542]
[1726536452010,0.04162627,2276.5,2276.2,4.39319]
[1726536454108,0.04162627,2276.5,2276.4,4.3929]
[1726536455305,0.04162627,2276.5,2276.2,0.91923016]
[1726536455516,3.2557,2276.4,2276.1,5.31255016]
[1726536455663,3.2557,2276.4,2276.2,5.49965113]
[1726536455864,3.2557,2276.4,2276.2,4.39318]
[1726536462253,0.04162627,2276.5,2276.2,4.39318]
[1726536464063,3.21,2276.4,2276.1,4.39336]
[1726536464278,3.21,2276.4,2276.2,1.10652847]
[1726536464427,3.21,2276.4,2276.1,4.39336]
[1726536465162,3.21,2276.4,2276.2,4.39327]
[1726536468622,3.21,2276.4,2276.1,4.39336]
[1726536468823,3.21,2276.4,2276.2,1.10642194]
[1726536469037,3.97817826,2276.4,2276.2,1.10642194]
[1726536469263,7.57697,2276.3,2275.8,5.31324016]
[1726536469477,0.04162627,2276.5,2275.8,5.31324016]
[1726536469478,3.1837,2276.1,2275.9,2.766269]
[1726536469764,7.57727,2276.1,2275.6,5.31353016]
[1726536469922,7.57727,2276.1,2275.7,2.76605322]
[1726536470122,7.57727,2276.1,2275.6,8.78858]
[1726536470320,7.57727,2276.1,2275.7,1.10641965]
[1726536470525,7.57727,2276.1,2275.4,5.31392016]
[1726536470526,3.2477,2276.0,2275.4,5.31392016]
[1726536470764,3.2477,2275.9,2275.5,5.10606901]
[1726536470937,3.2477,2275.9,2275.5,4.0]
[1726536471277,4.011846,2275.9,2275.5,4.0]
[1726536471642,4.011846,2275.9,2275.4,8.78941]
[1726536471827,3.2477,2275.9,2275.4,8.78941]
[1726536473462,3.2477,2275.9,2275.5,4.39462]
[1726536475030,0.04183919,2275.8,2275.5,4.39462]
[1726536475455,0.04183919,2275.8,2275.4,4.39469]
[1726536475880,0.04183919,2275.8,2275.3,4.39493]
[1726536475881,4.43589919,2275.8,2275.3,4.39493]
[1726536476090,3.2477,2275.6,2275.2,12.01835]
[1726536476648,3.2477,2275.6,2275.3,4.39499]
[1726536476890,3.2477,2275.6,2275.2,4.39503]
[1726536477087,3.2477,2275.6,2275.2,8.79014]
[1726536477286,3.2477,2275.6,2275.2,8.79015]
[1726536477692,3.2477,2275.6,2275.3,4.39501]
[1726536478281,3.2477,2275.6,2275.2,4.39503]
[1726536478282,7.64216,2275.6,2275.2,4.39503]
[1726536480697,7.64216,2275.6,2275.3,4.39498]
[1726536480698,3.2477,2275.6,2275.3,4.39498]
[1726536481269,3.2477,2275.6,2275.2,1.39889693]
[1726536481804,3.2477,2275.6,2275.0,7.61914]
[1726536481805,7.64223,2275.6,2275.1,4.39536]
[1726536481970,3.2477,2275.6,2275.2,8.79032]
[1726536482300,3.2477,2275.6,2275.2,5.79399893]
[1726536482503,3.2477,2275.6,2275.2,10.18912893]
[1726536483704,3.2477,2275.6,2275.2,10.18909893]
[1726536483903,3.2477,2275.6,2275.3,4.39499]
[1726536484687,3.2477,2275.6,2275.2,5.79397893]
[1726536484882,3.2477,2275.6,2275.2,10.18908893]
[1726536487011,3.2477,2275.6,2275.3,4.39502]
[1726536489317,3.2477,2275.6,2275.3,5.61139682]
[1726536490476,7.65867,2275.8,2275.3,10.00632682]
[1726536490877,7.65867,2275.8,2275.3,5.61130682]
[1726536491114,7.65867,2275.8,2275.3,5.61128682]
[1726536491321,7.65867,2275.8,2275.3,10.00622682]
[1726536491816,7.65867,2275.8,2275.3,5.61128682]
[1726536492137,7.65867,2275.8,2275.3,10.00622682]
[1726536492287,7.65867,2275.8,2275.3,4.39491]
[1726536492681,3.2645,2275.8,2275.1,1.97476928]
[1726536492881,3.2645,2275.8,2275.4,4.39465]
[1726536495511,7.65856,2275.8,2275.4,4.39465]
[1726536496225,3.2645,2275.8,2275.4,4.39465]
[1726536497281,7.65865,2275.8,2275.3,8.78993]
[1726536497481,7.65865,2275.8,2275.4,4.39475]
[1726536498032,3.2645,2275.8,2275.4,4.39475]
[1726536500628,3.2558,2275.6,2275.2,0.95940193]
[1726536500814,3.58138,2275.6,2275.1,4.3953]
[1726536501012,3.2558,2275.6,2275.2,4.39513]
[1726536503832,7.65026,2275.6,2275.2,4.39513]
[1726536504947,4.39434,2275.7,2274.0,0.91923016]
[1726536504948,3.235,2274.7,2274.0,0.91923016]
[1726536505090,3.235,2274.7,2274.1,4.0]
[1726536505091,4.39699,2274.3,2274.1,4.0]
[1726536505927,4.39699,2274.3,2273.9,0.0375163]
[1726536510145,4.39699,2274.3,2273.9,4.4352063]
[1726536511356,3.235,2274.4,2273.9,13.12083188]
[1726536511656,3.235,2274.4,2274.0,1.31208319]
[1726536511943,3.235,2274.4,2273.9,8.8327663]
[1726536512101,3.235,2274.4,2273.9,8.8327563]
[1726536512298,3.235,2274.4,2274.0,4.39753]
[1726536512845,7.63177,2274.4,2273.9,4.4352363]
[1726536513073,7.63192,2274.4,2273.9,4.4352363]
[1726536513631,7.63192,2274.4,2273.9,0.0375163]
[1726536513928,4.39753,2274.0,2273.9,0.0375163]
[1726536514763,7.59833,2274.1,2273.9,0.0375163]
[1726536514922,11.99583,2274.1,2273.9,0.0375163]
[1726536515127,4.39753,2274.0,2273.9,0.0375163]
[1726536520156,13.195363,2274.1,2273.9,0.0375163]
[1726536520360,11.99578,2274.1,2273.9,0.0375163]
[1726536520890,3.2008,2274.1,2273.9,0.0375163]
[1726536521707,7.59816,2274.1,2273.9,0.0375163]
[1726536521891,11.99565,2274.1,2273.9,0.0375163]
[1726536522053,7.59816,2274.1,2273.9,0.0375163]
[1726536528808,3.2008,2274.1,2273.9,0.0375163]
[1726536529002,3.2008,2274.1,2273.9,0.92083393]
[1726536530804,3.2008,2274.1,2273.9,0.0375163]
[1726536536793,4.39705,2274.3,2273.9,0.0375163]
[1726536537133,7.62595,2274.3,2273.9,3.3619163]
[1726536537331,3.2289,2274.3,2273.9,3.3619163]
[1726536537517,3.2289,2274.3,2274.0,5.17350363]
[1726536537719,4.39671,2274.5,2274.0,5.17340363]
[1726536537720,7.70018,2274.5,2274.0,5.17340363]
[1726536537920,7.70018,2274.5,2274.0,9.57084363]
[1726536538232,7.70018,2274.5,2274.1,1.29327599]
[1726536538432,7.70018,2274.5,2274.1,5.69058599]
[1726536539135,3.3035,2274.5,2274.1,5.69058599]
[1726536539343,3.0946,2274.7,2274.4,4.39666]
[1726536539655,3.0946,2274.7,2274.3,4.3969]
[1726536539656,6.71053793,2274.9,2274.7,4.39615]
[1726536539795,7.49016,2275.1,2274.6,8.79252]
[1726536539996,11.88566,2275.1,2274.6,4.39626]
[1726536540197,7.4901,2275.1,2274.6,4.39626]
[1726536540398,4.39561,2275.0,2274.6,4.39626]
[1726536541230,7.4901,2275.1,2274.6,8.79254]
[1726536541608,7.4901,2275.1,2274.6,4.39626]
[1726536542738,3.0946,2275.1,2274.8,4.39589]
[1726536543046,7.51187,2275.3,2274.8,12.03547]
[1726536543216,7.51187,2275.3,2274.8,7.63958]
[1726536543542,7.51187,2275.3,2274.8,12.9207159]
[1726536543745,7.51187,2275.3,2274.8,8.5248359]
[1726536543907,7.51187,2275.3,2274.8,12.9207259]
[1726536544101,7.51187,2275.3,2274.8,8.5248359]
[1726536544448,6.71053793,2275.4,2275.0,4.39557]
[1726536544655,6.71053793,2275.4,2274.9,4.39578]
[1726536544656,3.2348,2275.5,2275.1,4.39539]
[1726536544946,11.10492793,2275.7,2275.1,4.39539]
[1726536544947,9.94533793,2275.7,2275.3,4.39501]
[1726536545243,6.71053793,2275.7,2275.4,7.41251]
[1726536545404,6.71053793,2275.7,2275.4,8.1977149]
[1726536546051,3.2348,2275.9,2275.4,8.1977149]
[1726536546254,3.2348,2275.9,2275.5,4.39459]
[1726536548064,4.39372,2276.0,2275.5,4.39459]
[1726536551444,4.39372,2276.0,2275.5,5.65382049]
[1726536553474,4.39398,2275.9,2275.5,1.25923049]
[1726536553777,3.208,2275.7,2275.2,7.934529]
[1726536553978,7.6023,2275.7,2275.2,11.89003]
[1726536554873,7.6023,2275.7,2275.3,4.39501]
[1726536555436,3.208,2275.7,2275.3,4.39501]
[1726536557663,4.39454,2275.6,2275.2,3.0999]
[1726536557866,4.39465,2275.5,2275.2,3.0999]
[1726536558034,4.39465,2275.5,2275.0,4.39546]
[1726536558750,4.39465,2275.5,2275.0,8.79096]
[1726536558947,4.39465,2275.5,2275.0,4.39546]
[1726536559677,4.39454,2275.6,2275.0,4.39546]
[1726536559995,4.39454,2275.6,2275.2,3.2514]
[1726536561480,4.39454,2275.6,2275.2,7.64661]
[1726536561998,7.60225,2275.7,2275.2,7.6465]
[1726536562198,4.39425,2275.7,2275.2,7.6465]
[1726536562497,4.39414,2275.8,2275.3,4.39487]
[1726536562970,11.8874,2275.9,2275.4,4.3948]
[1726536563665,3.0994,2275.9,2275.5,4.39463]
[1726536563881,7.39368,2276.0,2275.6,3.2104]
[1726536565758,4.39357,2276.1,2275.7,4.39416]
[1726536567005,4.39357,2276.1,2275.6,3.970893]
[1726536567006,3.2593,2276.3,2275.9,7.41006]
[1726536567296,3.1112,2276.2,2275.8,4.39403]
[1726536568203,3.1112,2276.2,2275.8,8.78799]
[1726536568997,3.1112,2276.2,2275.8,8.78792]
[1726536569561,3.1112,2276.2,2275.8,8.78791]
[1726536569765,3.1112,2276.2,2275.8,10.0443703]
[1726536570490,3.1112,2276.2,2275.8,5.6504103]
[1726536571607,3.1112,2276.2,2275.8,10.0443803]
[1726536571757,3.1112,2276.2,2275.8,5.6504103]
[1726536574001,4.39318,2276.3,2275.8,5.6504103]
[1726536574204,4.39318,2276.3,2275.9,0.86666103]
[1726536574512,4.39318,2276.3,2276.0,3.1144]
[1726536575070,8.78636,2276.3,2276.0,3.1144]
[1726536575313,8.78637,2276.3,2276.0,3.1144]
[1726536576905,4.39318,2276.3,2276.0,3.1144]
[1726536578962,4.3934,2276.2,2275.9,0.86666103]
[1726536579124,4.3934,2276.2,2275.8,3.1648]
[1726536580157,4.39318,2276.3,2275.9,3.1648]
[1726536580360,8.78639,2276.3,2275.9,3.1648]
[1726536580970,4.39332,2276.2,2275.9,3.1648]
[1726536586234,4.39318,2276.3,2275.9,3.1648]
[1726536586235,4.39348,2276.1,2275.9,3.1648]
[1726536586797,4.39405,2275.8,2275.3,7.45301]
[1726536586938,4.39405,2275.8,2275.3,11.84793]
[1726536588086,4.39405,2275.8,2275.4,4.39478]
[1726536588740,13.07956115,2276.2,2275.3,7.45301]
[1726536588741,6.71053793,2276.2,2276.1,7.66538]
[1726536588940,3.0908,2276.7,2276.2,4.39312]
[1726536589189,6.71053793,2276.8,2276.5,3.2719]
[1726536589508,6.71053793,2276.8,2276.5,7.6646]
[1726536590236,6.71053793,2276.8,2276.5,3.2719]
[1726536591886,9.80133793,2276.8,2276.3,3.2719]
[1726536592100,14.19355793,2276.8,2276.3,3.2719]
[1726536592457,7.48302,2276.8,2276.3,3.2719]
[1726536592801,11.10221793,2277.1,2276.5,7.6646]
[1726536592958,3.0908,2276.9,2276.5,3.2719]
[1726536593500,7.48274,2276.9,2276.5,3.2719]
[1726536595604,7.48274,2276.9,2276.5,7.6646]
[1726536597422,4.39194,2276.9,2276.5,7.6646]
[1726536600791,18.67421793,2277.1,2276.5,7.6646]
[1726536601024,14.28251793,2277.1,2276.5,7.6646]
[1726536601833,4.39186,2277.0,2276.5,7.6646]
[1726536601985,14.28251793,2277.1,2276.4,4.39281]
[1726536601986,4.39204,2276.9,2276.4,4.39281]
[1726536602184,4.39204,2276.9,2276.4,4.39278]
[1726536602399,8.78409,2276.9,2276.5,0.88128325]
[1726536602685,4.39204,2276.9,2276.5,0.88128325]
[1726536604331,4.39204,2276.9,2276.5,5.27398325]
[1726536604752,4.39204,2276.9,2276.5,0.88128325]
[1726536605205,4.39178,2277.0,2276.5,5.27398325]
[1726536605384,4.39194,2276.9,2276.5,0.88128325]
[1726536605901,4.4300563,2276.6,2276.2,4.39313]
[1726536606095,0.0375163,2276.6,2276.2,4.39313]
[1726536606298,0.0375163,2276.6,2276.1,3.1612]
[1726536606299,4.4300363,2276.6,2276.1,3.1612]
[1726536606518,4.4300363,2276.6,2276.1,4.39347]
[1726536606519,4.3928,2276.5,2276.1,4.39347]
[1726536606897,5.19370993,2276.6,2276.1,4.39347]
[1726536607141,4.4300363,2276.6,2276.1,4.39347]
[1726536607875,3.2041,2276.3,2275.7,3.2438]
[1726536608079,4.39349,2276.1,2275.5,3.2438]
[1726536608232,4.39395,2275.9,2275.4,4.3947]
[1726536608577,7.59795,2276.0,2275.4,5.15855]
[1726536608760,7.59795,2276.0,2275.5,4.39462]
[1726536608961,11.99177,2276.0,2275.5,4.39462]
[1726536609270,7.59792,2276.0,2275.5,4.39462]
[1726536609434,7.59792,2276.0,2275.6,4.3944]
[1726536609829,4.39349,2276.1,2275.6,4.3944]
[1726536610058,4.39318,2276.3,2275.8,4.39404]
[1726536610370,4.39318,2276.3,2275.8,5.60413656]
[1726536610525,4.39318,2276.3,2275.8,4.39404]
[1726536611040,4.39339,2276.2,2275.7,7.61904]
[1726536611240,3.2095,2276.4,2275.7,3.2248]
[1726536611241,4.39348,2276.1,2275.7,3.2248]
[1726536611454,3.1317,2276.0,2275.6,4.39443]
[1726536611945,3.1317,2276.0,2275.5,5.674187]
[1726536612175,4.39348,2276.1,2275.6,5.2838017]
[1726536613485,3.2863,2276.4,2275.8,3.1389]
[1726536613784,4.39348,2276.1,2275.8,3.1389]
[1726536613974,4.39348,2276.1,2275.7,4.39413]
[1726536615017,4.39321,2276.3,2275.7,4.39413]
[1726536615227,8.78646,2276.3,2275.8,5.147273]
[1726536615388,4.39333,2276.2,2275.7,4.39413]
[1726536615587,4.39386,2276.0,2275.6,3.1389]
[1726536615784,8.78714,2276.1,2275.6,3.1389]
[1726536616012,4.39348,2276.1,2275.6,7.53331]
[1726536616723,3.204,2275.9,2275.4,7.56105]
[1726536616905,3.204,2275.9,2275.5,4.39462]
[1726536618602,7.59786,2275.9,2275.5,4.39462]
[1726536618825,7.59786,2275.9,2275.4,11.95577]
[1726536619133,4.39409,2275.8,2275.4,4.44872435]
[1726536619347,4.39409,2275.8,2275.4,3.1664]
[1726536621652,4.39409,2275.8,2275.4,7.56122]
[1726536621859,7.59786,2275.9,2275.4,7.56114]
[1726536622010,4.39376,2276.0,2275.5,4.39451]
[1726536622233,7.73101,2276.1,2275.6,4.39441]
[1726536622427,7.73098,2276.1,2275.6,4.39441]
[1726536622643,12.12459,2276.1,2275.6,4.39441]
[1726536622840,4.39367,2276.0,2275.5,4.39451]
[1726536623049,4.39412,2275.8,2275.4,3.1664]
[1726536623242,8.78828,2275.8,2275.4,3.1664]
[1726536623474,8.7883,2275.8,2275.4,3.1664]
[1726536623768,4.39412,2275.8,2275.4,3.1664]
[1726536624543,8.78833,2275.8,2275.4,3.1664]
[1726536624740,4.39412,2275.8,2275.4,3.1664]
[1726536624943,7.64502,2275.8,2275.4,3.1664]
[1726536625736,4.39439,2275.7,2275.4,3.1664]
[1726536626141,4.39439,2275.7,2275.2,7.73113]
[1726536626445,4.39439,2275.7,2275.2,8.943767]
[1726536627190,4.39447,2275.6,2275.2,3.336]
[1726536627742,4.39439,2275.7,2275.2,7.7311]
[1726536628183,4.39453,2275.6,2275.2,3.336]
[1726536630547,4.39453,2275.6,2275.2,7.73121]
[1726536630745,7.6451,2275.8,2275.3,4.39501]
[1726536631076,4.39417,2275.8,2275.3,4.39496]
[1726536631279,8.78833,2275.8,2275.3,4.39496]
[1726536631479,8.78833,2275.8,2275.3,6.03551346]
[1726536631680,4.39428,2275.7,2275.3,6.03551346]
[1726536632845,4.39428,2275.7,2275.3,4.39496]
[1726536634214,4.39416,2275.8,2275.3,4.3949]
[1726536634994,8.78835,2275.8,2275.3,4.3949]
[1726536636533,4.39416,2275.8,2275.3,4.3949]
[1726536637207,8.78834,2275.8,2275.3,4.3949]
[1726536637529,4.39426,2275.7,2275.3,4.3949]
[1726536640416,4.39448,2275.6,2275.2,3.336]
[1726536640624,4.39448,2275.6,2275.1,4.39525]
[1726536640625,4.39457,2275.6,2275.1,4.39525]
[1726536642918,4.39457,2275.6,2275.1,8.79056]
[1726536643109,4.39457,2275.6,2275.1,9.972126]
[1726536643449,4.39457,2275.6,2275.2,3.0204]
[1726536648747,4.39406,2275.8,2275.3,3.2095]
[1726536649056,3.044,2276.0,2275.3,3.2095]
[1726536649057,4.39426,2275.7,2275.3,3.2095]
[1726536649222,4.39454,2275.6,2275.3,3.2095]
[1726536650713,8.78865,2275.7,2275.3,3.2095]
[1726536650942,4.39426,2275.7,2275.3,3.2095]
[1726536651149,4.39407,2275.8,2275.4,3.2095]
[1726536653166,4.39407,2275.8,2275.4,7.60427]
[1726536653335,4.394,2275.9,2275.4,7.60427]
[1726536653543,8.78801,2275.9,2275.4,7.60427]
[1726536654166,8.78797,2275.9,2275.4,7.60427]
[1726536654542,8.78794,2275.9,2275.4,7.60427]
[1726536654856,4.39397,2275.9,2275.4,7.60427]
[1726536655042,4.39396,2275.9,2275.4,8.9241802]
[1726536655238,8.78792,2275.9,2275.4,8.9241802]
[1726536658043,4.39396,2275.9,2275.4,8.9241802]
[1726536658260,11.86364,2276.1,2275.7,4.39421]
[1726536658433,4.39364,2276.1,2275.7,4.39421]
[1726536659034,4.39364,2276.1,2275.8,3.2679]
[1726536659259,4.3933,2276.2,2275.8,3.2679]
[1726536659595,4.39321,2276.3,2275.8,8.43692901]
[1726536659751,8.78641,2276.3,2275.8,8.43692901]
[1726536660128,4.3933,2276.2,2275.8,4.04289901]
[1726536660845,11.86278,2276.5,2275.9,3.2679]
[1726536661043,7.47,2276.5,2276.0,3.2679]
[1726536661247,7.47,2276.5,2276.2,3.2679]
[1726536661559,0.0375163,2276.6,2276.2,3.2679]
[1726536662152,0.0375163,2276.6,2276.3,7.66081]
[1726536662477,0.0375163,2276.6,2276.5,7.6606]
[1726536662782,0.0375163,2276.6,2276.5,10.06025921]
[1726536665465,0.0375163,2276.6,2276.5,14.45295921]
[1726536667673,0.0375163,2276.6,2276.5,5.66755921]
[1726536668000,0.0375163,2276.6,2276.5,12.0533]
[1726536672919,0.0375163,2276.6,2276.5,16.446]
[1726536673126,0.0375163,2276.6,2276.5,16.996]
[1726536674380,0.0375163,2276.6,2276.5,21.3887]
[1726536676519,0.0375163,2276.6,2276.5,16.996]
[1726536676730,0.0375163,2276.6,2276.5,19.12383921]
[1726536676948,0.0375163,2276.6,2276.5,23.51653921]
[1726536677082,0.0375163,2276.6,2276.5,27.51653921]
[1726536678026,7.47,2277.0,2276.9,8.78386]
[1726536678187,0.0375163,2277.3,2276.9,8.78386]
[1726536678188,0.0375163,2277.3,2277.2,4.39135]
[1726536682431,0.0375163,2277.3,2277.2,8.87051755]
[1726536682636,0.0375163,2277.3,2277.2,16.93836755]
[1726536682993,0.0375163,2277.3,2277.2,19.93836755]
[1726536683197,0.0375163,2277.3,2277.2,22.79961551]
[1726536684244,0.0375163,2277.3,2277.2,26.79961551]
[1726536685026,0.0375163,2277.3,2277.2,26.71179796]
[1726536686268,19.91,2277.9,2277.8,4.3902]
[1726536686465,0.0375163,2278.0,2277.8,5.600988]
[1726536686673,0.0375163,2278.0,2277.6,8.78097]
[1726536687040,0.0375163,2278.0,2277.6,8.78095]
[1726536687376,0.0375163,2278.0,2277.7,4.39037]
[1726536687571,0.0375163,2278.0,2277.7,4.39029]
[1726536687787,0.0375163,2278.0,2277.8,5.268276]
[1726536687954,0.0375163,2278.0,2277.8,4.3902]
[1726536688273,0.0375163,2278.0,2277.7,4.39037]
[1726536688274,3.2807,2277.9,2277.7,4.39037]
[1726536688848,3.2807,2277.9,2277.6,8.78095]
[1726536689036,3.2807,2277.9,2277.7,4.829407]
[1726536691629,0.0375163,2278.0,2277.8,4.3902]
[1726536692883,0.0375163,2278.0,2277.9,8.78]
[1726536693055,0.0375163,2278.0,2277.9,10.44428359]
[1726536693586,0.0375163,2278.0,2277.9,13.57848359]
[1726536693793,0.0375163,2278.0,2277.9,17.96848359]
[1726536693941,0.0375163,2278.0,2277.9,18.51848359]
[1726536694987,0.0375163,2278.0,2277.9,18.12848359]
[1726536695347,0.0375163,2278.0,2277.9,22.51848359]
[1726536698257,0.0375163,2278.0,2277.9,26.90848359]
[1726536698463,7.47,2278.5,2278.4,16.76452]
[1726536698665,0.0375163,2278.7,2278.6,16.76335]
[1726536698956,0.0375163,2278.7,2278.6,21.04574206]
[1726536699564,0.0375163,2278.7,2278.6,20.10709206]
[1726536699760,0.0375163,2278.7,2278.6,22.55669327]
[1726536700584,0.0375163,2278.7,2278.6,23.10669327]
[1726536700791,0.0375163,2278.7,2278.6,30.49534327]
[1726536702312,0.0375163,2278.7,2278.6,34.88399327]
[1726536702618,0.0375163,2278.7,2278.6,44.12289327]
[1726536703177,6.49215564,2279.1,2278.6,44.12289327]
[1726536703178,6.49215564,2279.1,2279.0,11.84956]
[1726536703374,0.0375163,2279.3,2279.1,8.77518]
[1726536703615,0.0375163,2279.3,2279.2,4.3875]
[1726536703790,0.0375163,2279.3,2279.1,4.38759]
[1726536703992,0.0375163,2279.3,2279.2,4.3875]
[1726536704878,3.316,2279.4,2279.1,4.38759]
[1726536705111,3.316,2279.4,2279.1,8.77519]
[1726536705302,3.316,2279.4,2279.1,4.38759]
[1726536705720,4.086282,2279.4,2278.7,7.44842769]
[1726536706015,6.53487524,2279.7,2278.8,8.38826]
[1726536706016,3.244,2279.2,2278.8,8.38826]
[1726536706319,3.244,2279.2,2278.8,4.38826]
[1726536706876,3.244,2279.2,2278.7,4.38834]
[1726536707215,3.244,2279.2,2278.7,5.19828652]
[1726536707431,3.244,2279.2,2278.8,4.38815]
[1726536707630,3.244,2279.2,2278.9,4.38804]
[1726536707782,3.244,2279.2,2278.8,13.05871206]
[1726536707985,3.244,2279.2,2278.8,5.77500586]
[1726536708185,3.244,2279.2,2278.8,4.38813]
[1726536708400,4.38771,2279.1,2278.7,4.38846]
[1726536708754,3.1871,2279.0,2278.7,4.38846]
[1726536708966,3.1871,2279.0,2278.6,8.77707]
[1726536709312,3.1871,2279.0,2278.7,4.38842]
[1726536711957,3.1871,2279.0,2278.8,4.38813]
[1726536712122,3.1871,2279.0,2278.6,4.38857]
[1726536712519,3.1871,2279.0,2278.7,4.38845]
[1726536712717,3.1871,2279.0,2278.6,4.38864]
[1726536713660,3.1871,2279.0,2278.4,8.67128206]
[1726536713661,2.9849,2278.8,2278.4,4.38888]
[1726536713963,3.722207,2278.8,2278.4,4.38888]
[1726536714121,2.9849,2278.8,2278.4,4.38888]
[1726536714651,2.9849,2278.8,2278.3,4.38916]
[1726536714652,7.37336,2278.8,2278.3,4.38916]
[1726536715157,2.9849,2278.6,2278.2,4.38929]
[1726536715368,7.37357,2278.6,2278.2,4.38929]
[1726536715567,2.9849,2278.6,2278.2,4.38929]
[1726536716034,2.9849,2278.6,2278.2,4.38942]
[1726536716763,2.9849,2278.6,2278.2,8.77873]
[1726536717079,2.9849,2278.6,2278.3,4.38921]
[1726536717433,2.9849,2278.6,2278.2,10.095479]
[1726536717632,2.9849,2278.6,2278.3,4.38921]
[1726536720265,2.9849,2278.6,2278.2,5.706129]
[1726536720466,2.9849,2278.6,2278.3,4.38922]
[1726536720677,2.9849,2278.6,2278.3,4.38787585]
[1726536720889,2.9849,2278.6,2278.3,4.38922]
[1726536721186,2.9849,2278.6,2278.2,4.38929]
[1726536721341,3.2486,2278.5,2278.2,4.38929]
[1726536724664,3.2486,2278.5,2278.0,4.38965]
[1726536724857,4.38943,2278.2,2277.7,4.39028]
[1726536725075,3.0716,2278.1,2277.7,4.0]
[1726536725411,3.0716,2278.1,2277.4,7.37579206]
[1726536725412,4.38992,2278.0,2277.5,4.39068]
[1726536725554,3.0716,2277.8,2277.3,4.3932147]
[1726536725754,3.0716,2277.8,2277.4,4.39093]
[1726536726010,3.1386,2278.0,2277.5,8.4784783]
[1726536726152,3.1386,2278.0,2277.7,4.39028]
[1726536726492,3.1386,2278.0,2277.7,4.39024]
[1726536731267,4.38954,2278.2,2277.7,4.39024]
[1726536731268,7.42514,2278.2,2277.7,4.39024]
[1726536731469,3.0356,2278.2,2277.7,4.39024]
[1726536731708,7.42505,2278.2,2277.7,7.69284]
[1726536734796,8.51843521,2278.2,2277.7,7.69284]
[1726536734998,8.51843521,2278.2,2277.5,4.39062]
[1726536734999,3.0069,2278.0,2277.5,4.39062]
[1726536735200,3.0069,2278.0,2277.6,4.39045]
[1726536735370,7.39673,2278.0,2277.5,4.39062]
[1726536735569,3.1944,2277.9,2277.5,4.39062]
[1726536735768,3.1944,2277.9,2277.4,4.39095]
[1726536735969,3.1944,2277.9,2277.5,4.39077]
[1726536736207,3.1944,2277.9,2277.5,8.78145]
[1726536736371,3.1944,2277.9,2277.5,4.39068]
[1726536737811,3.1944,2277.9,2277.5,8.78136]
[1726536738506,3.1944,2277.9,2277.5,4.39068]
[1726536738926,3.1944,2277.9,2277.5,8.78137]
[1726536739265,3.1944,2277.9,2277.5,4.39068]
[1726536739878,3.1944,2277.9,2277.5,8.78135]
[1726536740310,3.1944,2277.9,2277.6,4.39054]
[1726536740675,3.1944,2277.9,2277.7,4.3903]
[1726536743268,3.138,2278.1,2277.7,4.39029]
[1726536743471,3.138,2278.1,2277.7,4.39021]
[1726536743697,3.138,2278.1,2277.7,9.644946]
[1726536743923,3.138,2278.4,2278.1,4.38962]
[1726536744269,3.138,2278.4,2278.1,4.38952]
[1726536744469,3.138,2278.4,2278.1,10.08520821]
[1726536744694,3.138,2278.4,2278.1,4.38951]
[1726536746937,3.138,2278.4,2278.2,4.38943]
[1726536747575,3.138,2278.4,2278.3,4.38923]
[1726536747715,3.076,2278.6,2278.2,7.48213]
[1726536748054,3.076,2278.6,2278.3,0.438943]
[1726536748260,3.076,2278.6,2278.5,4.38885]
[1726536748412,6.49215564,2278.9,2278.7,4.38832]
[1726536748618,3.076,2279.0,2278.7,8.77666]
[1726536748928,3.076,2279.0,2278.8,4.38815]
[1726536749170,3.0203,2279.2,2278.9,4.38797]
[1726536749382,3.0203,2279.2,2278.8,5.578017]
[1726536749383,3.0203,2279.2,2279.0,4.38788]
[1726536750015,9.51245564,2279.4,2279.0,4.38777]
[1726536750240,9.51245564,2279.4,2279.1,4.38769]
[1726536750241,3.0203,2279.4,2279.1,4.38769]
[1726536751643,3.0203,2279.4,2278.8,8.824597]
[1726536751876,3.0203,2279.4,2278.9,4.38795]
[1726536751877,7.40755,2279.4,2278.9,4.38795]
[1726536752335,7.40755,2279.4,2278.8,8.77629]
[1726536752680,7.40755,2279.4,2278.9,4.38805]
[1726536752681,3.0203,2279.4,2278.9,4.38805]
[1726536753037,7.40743,2279.4,2278.9,4.38805]
[1726536753372,8.586871,2279.4,2278.8,4.38813]
[1726536753584,4.199751,2279.4,2278.9,4.38797]
[1726536754576,3.0203,2279.4,2278.9,4.38797]
[1726536755177,3.0203,2279.4,2279.0,4.38786]
[1726536755374,3.0203,2279.4,2279.0,4.38778]
[1726536756972,7.40747,2279.4,2279.0,4.38778]
[1726536757177,7.40747,2279.4,2279.0,4.38646197]
[1726536757381,3.0203,2279.4,2279.0,4.38646197]
[1726536757582,3.0203,2279.4,2279.1,4.38769]
[1726536758805,7.40751,2279.4,2278.9,4.38798]
[1726536759020,7.40751,2279.4,2279.0,4.38788]
[1726536759203,8.148261,2279.4,2279.0,4.38788]
[1726536760414,8.148261,2279.4,2278.8,4.38812]
[1726536760415,12.535471,2279.4,2278.9,4.38806]
[1726536760584,8.148261,2279.4,2278.9,4.38806]
[1726536763300,3.761051,2279.4,2279.0,4.38784]
[1726536763516,3.0203,2279.4,2279.1,4.38762]
[1726536765297,3.0203,2279.4,2279.2,4.3874]
[1726536765499,3.0409073,2279.4,2279.2,4.3874]
[1726536766787,0.0206073,2279.4,2279.2,4.3874]
[1726536766984,0.0206073,2279.4,2279.3,4.38731]
[1726536767208,0.0206073,2279.4,2279.2,5.585162]
[1726536767539,0.0206073,2279.4,2279.2,8.77481]
[1726536768285,0.0206073,2279.4,2279.3,4.38731]
[1726536768486,0.0206073,2279.4,2279.3,11.91336163]